{"text_format":"1","workbook":"xlsx","n_sheets":2,"sheets":["Ficha","Hoja1"],"not_rendered":{"charts":0,"images":0,"macros":1,"external_links":2,"defined_names":7,"comments":0,"pivot_tables":0},"unopened":[],"bounds":{"document_bytes":16777216,"sheet_cells":100000,"rows_first":2000,"rows_last":500,"rows_between":2000,"halvings":0,"cell_chars":16384,"cell_head_chars":4096},"cells_cut":0,"cells_raw":0,"read":"whole","date_system":"1900"}

{"sheet":"Ficha","index":0,"n_rows":104,"n_cols":15,"rows_kept":104,"cut":false,"hidden":false,"merged":[[67,0,67,13],[62,4,62,5],[4,3,4,9],[39,0,39,2],[40,0,40,2],[41,0,41,2],[42,0,42,2],[25,0,27,0],[27,4,27,6],[37,0,37,2],[38,0,38,2],[42,3,42,5],[41,3,41,5],[30,4,30,6],[35,0,35,9],[25,4,25,6],[30,1,30,2],[12,1,12,9],[14,7,14,9],[11,1,11,2],[90,0,90,13],[69,13,70,13],[94,1,94,2],[16,6,16,9],[17,6,17,8],[18,6,18,8],[19,6,19,8],[20,6,20,8],[24,4,24,6],[45,0,45,9],[63,0,64,0],[58,0,58,2],[52,0,52,2],[48,3,48,5],[49,3,49,5],[50,3,50,5],[51,3,51,5],[47,3,47,5],[55,10,55,13],[24,1,24,2],[25,1,25,2],[62,1,62,3],[63,1,64,3],[55,0,55,9],[1,0,1,13],[2,0,2,13],[9,7,9,9],[11,4,11,5],[22,0,22,9],[28,0,30,0],[7,0,7,9],[16,0,16,4],[17,0,17,2],[18,0,18,2],[19,0,19,2],[9,1,9,2],[9,4,9,5],[10,1,10,2],[10,4,10,5],[10,7,10,9],[20,0,20,2],[4,0,4,2],[13,1,13,2],[13,4,13,5],[13,7,13,9],[14,4,14,5],[14,1,14,2],[11,7,11,9],[61,0,61,6],[47,0,47,2],[48,0,48,2],[37,3,37,5],[38,3,38,5],[39,3,39,5],[40,3,40,5],[26,4,26,6],[28,4,28,6],[29,4,29,6],[49,0,49,2],[50,0,50,2],[51,0,51,2],[52,3,52,5],[57,0,57,4],[59,0,59,2],[26,1,26,2],[27,1,27,2],[28,1,28,2],[29,1,29,2],[72,0,72,1],[72,2,72,3],[72,4,72,5],[72,6,72,7],[69,10,69,12],[69,9,70,9],[69,8,70,8],[69,6,70,7],[69,4,70,5],[69,2,70,3],[69,0,70,1],[71,0,71,1],[71,2,71,3],[71,4,71,5],[71,6,71,7],[83,4,83,5],[83,6,83,7],[81,0,82,1],[81,2,82,3],[81,4,82,5],[81,6,82,7],[81,8,82,8],[73,0,73,1],[73,2,73,3],[73,4,73,5],[73,6,73,7],[79,0,79,13],[74,0,74,1],[74,2,74,3],[74,4,74,5],[74,6,74,7],[75,0,75,1],[75,2,75,3],[75,4,75,5],[75,6,75,7],[102,7,102,11],[103,7,103,11],[81,13,82,13],[92,0,92,13],[86,0,86,1],[86,2,86,3],[86,4,86,5],[86,6,86,7],[87,0,87,1],[87,2,87,3],[87,4,87,5],[87,6,87,7],[84,0,84,1],[84,2,84,3],[84,4,84,5],[84,6,84,7],[85,0,85,1],[85,2,85,3],[85,4,85,5],[85,6,85,7],[81,9,82,9],[81,10,81,12],[83,0,83,1],[83,2,83,3]]}
[]
["ANEXO 01"]
["FICHA CURRICULAR"]
[]
["CARGO A POSTULAR",null,null,"ESPECIALISTA 2A – PROMOCIÓN Y SOPORTE REGIONAL"]
[]
[]
["1. DATOS PERSONALES"]
[]
["APELLIDO PATERNO",null,null,"APELLIDO MATERNO",null,null,"NOMBRES"]
["LUGAR DE NACIMIENTO",null,null,"FECHA DE NACIMIENTO",null,null,"EDAD",{"$f":"IF(ISBLANK(E11),\"\",DATEDIF(E11,TODAY(),\"y\"))","v":""}]
["DNI Nº",null,null,"RUC N°",null,null,"ESTADO CIVIL"]
["DIRECCIÓN ACTUAL"]
["DISTRITO",null,null,"PROVINCIA",null,null,"DEPARTAMENTO"]
["TELEFÓNO FIJO",null,null,"CELULAR",null,null,"CORREO ELECTRÓNICO"]
[]
["Para ser llenado por todos los postulantes",null,null,null,null,null,"Para ser llenado por todos los postulantes"]
["OTROS DOCUMENTOS IMPORTANTES. ",null,null,"RESPUESTA (SI/NO)","(*)  N° de Folio donde se ubica el sustento",null,"IDENTIFICACIÓN",null,null,"(*)  N° de Folio donde se ubica el sustento"]
["Es ud. una Persona con Discapacidad",null,null,null,null,null,"Copia simple de DNI "]
["Ud. Es Licenciado de las Fuerzas Armadas",null,null,null,null,null,"Anexo 02 - Declaración Jurada","Anexo 02 - Declaración Jurada"]
[null,null,null,null,null,null,"Consulta RUC","Consulta RUC"]
[]
["2.  FORMACIÓN ACADÉMICA"]
[]
["CONCEPTO","NOMBRE DE LA INSTITUCIÓN",null,"NIVEL ALCANZADO","PROFESIÓN O ESPECIALIDAD",null,null,"FECHA DE INICIO\n(mm/aa)","FECHA DE TÉRMINO\n(mm/aa)","(*)  N° de Folio donde se ubica el sustento"]
["EDUCACIÓN SUPERIOR (1)"]
[]
[]
["ESTUDIOS DE POST GRADO (2)"]
[]
[]
["(1) Institutos y Universidades."]
["(2) Aquellos a los que sólo se accede tras obtener un grado académico, como son la segunda especialidad profesional, maestría y doctorado."]
[]
[]
["3.  ESTUDIOS DE ESPECIALIZACIONES O DIPLOMADOS (RELACIONADO AL PUESTO AL QUE POSTULA)."]
[]
["NOMBRE DEL DIPLOMADO y/o ESPECIALIZACIÓN",null,null,"INSTITUCIÓN",null,null,"FECHA DE \nINICIO\n(mm/aa)","FECHA DE TÉRMINO\n(mm/aa)","HORAS LECTIVAS  DE DURACIÓN DEL DIPLOMADO","(*)  N° de Folio donde se ubica el sustento"]
[]
[]
[]
[]
[]
[]
[]
["4.  CURSOS, CAPACITACIÓN, SEMINARIOS, TALLERES  (RELACIONADO AL PUESTO AL QUE POSTULA)."]
[]
["NOMBRE DEL CURSO",null,null,"INSTITUCIÓN",null,null,"FECHA DE \nINICIO\n(mm/aa)","FECHA DE TÉRMINO\n(mm/aa)","HORAS LECTIVAS  DE DURACIÓN DEL CURSO","(*)  N° de Folio donde se ubica el sustento"]
[]
[]
[]
[]
[]
[]
[]
["5.  CAPACITACIÓN / CERTIFICACIÓN RELACIONADO AL PUESTO AL QUE POSTULA."]
[]
["Para ser llenado sólo por los postulantes del puesto:\nEspecialista 2 - Asistente de Compras"]
["CERTIFICADO",null,null,"Fecha de caducidad (Día/Mes/Año)","(*)  N° de Folio donde se ubica el sustento"]
["Certificación de Funcionario y Servidor del Organo Encargado de Contrataciones OEC vigente"]
[]
["Para ser llenado sólo por los postulantes de los puestos que requieran Colegiatura/Habilitación"]
["Colegiado\n(SI/NO)","NOMBRE DEL COLEGIO",null,null,"Colegiatura y Habilitación",null,"(*)  N° de Folio donde se ubica el sustento"]
[null,null,null,null,"Nro. de Colegiatura"]
[null,null,null,null,"Habilitado (SI/NO)"]
[]
[]
["6.  EXPERIENCIA PROFESIONAL (INICIANDO POR LA EXPERIENCIA MÁS RECIENTE)"]
[]
["NOMBRE DE ENTIDAD ",null,"UNIDAD ORGÁNICA / ÁREA",null,"CARGO DESEMPEÑADO ",null,"ACTIVIDAD O FUNCION DESPEMPEÑADA",null,"FECHA DE INICIO\nD/M/A","FECHA DE TERMINO\nD/M/A","EXPERIENCIA",null,null,"(*)  N° de Folio donde se ubica el sustento"]
[null,null,null,null,null,null,null,null,null,null,"AÑOS","MESES","DIAS"]
[null,null,null,null,null,null,null,null,null,null,{"$f":"ROUNDDOWN((DATEDIF(I72,J72,\"d\")/360),0)","v":0},{"$f":"IF((DATEDIF(I72,J72,\"d\")-(K72*360))>30,ROUNDDOWN(((DATEDIF(I72,J72,\"d\")-(K72*360))/30),0),0)","v":0},{"$f":"IF((DATEDIF(I72,J72,\"d\")-((K72*360)+(L72*30)))<0,0,(DATEDIF(I72,J72,\"d\")-((K72*360)+(L72*30))))","v":0},null,{"$f":"DATEDIF(I72,J72,\"d\")","v":0}]
[null,null,null,null,null,null,null,null,null,null,0,0,{"$f":"IF((DATEDIF(I73,J73,\"d\")-((K73*360)+(L73*30)))<0,0,(DATEDIF(I73,J73,\"d\")-((K73*360)+(L73*30))))","v":0},null,{"$f":"DATEDIF(I73,J73,\"d\")","v":0}]
[null,null,null,null,null,null,null,null,null,null,0,0,{"$f":"IF((DATEDIF(I74,J74,\"d\")-((K74*360)+(L74*30)))<0,0,(DATEDIF(I74,J74,\"d\")-((K74*360)+(L74*30))))","v":0},null,0]
[null,null,null,null,null,null,null,null,null,null,0,0,0,null,0]
[null,null,null,null,null,null,null,null,null,null,0,0,0,null,0]
[null,null,null,null,null,null,null,null,null,"TOTAL AÑOS DE EXPERIENCIA",{"$f":"ROUNDDOWN((SUM(O72:O76)/360),0)","v":0},{"$f":"IF((SUM(O72:O76)-(K77*360))>30,ROUNDDOWN(((SUM(O72:O76)-(K77*360))/30),0),0)","v":0},{"$f":"IF((SUM(O72:O76)-((K77*360)+(L77*30)))<0,0,(SUM(O72:O76)-((K77*360)+(L77*30))))","v":0}]
[]
[]
["7.  EXPERIENCIA ESPECÍFICA (INICIANDO POR LA EXPERIENCIA MÁS RECIENTE)"]
[]
["NOMBRE DE ENTIDAD ",null,"UNIDAD ORGÁNICA / ÁREA",null,"CARGO DESEMPEÑADO ",null,"ACTIVIDAD O FUNCION DESPEMPEÑADA",null,"FECHA DE INICIO\nD/M/A","FECHA DE TERMINO\nD/M/A","EXPERIENCIA",null,null,"(*)  N° de Folio donde se ubica el sustento"]
[null,null,null,null,null,null,null,null,null,null,"AÑOS","MESES","DIAS"]
[null,null,null,null,null,null,null,null,null,null,{"$f":"ROUNDDOWN((DATEDIF(I84,J84,\"d\")/360),0)","v":0},{"$f":"IF((DATEDIF(I84,J84,\"d\")-(K84*360))>30,ROUNDDOWN(((DATEDIF(I84,J84,\"d\")-(K84*360))/30),0),0)","v":0},{"$f":"IF((DATEDIF(I84,J84,\"d\")-((K84*360)+(L84*30)))<0,0,(DATEDIF(I84,J84,\"d\")-((K84*360)+(L84*30))))","v":0},null,{"$f":"DATEDIF(I84,J84,\"d\")","v":0}]
[null,null,null,null,null,null,null,null,null,null,{"$f":"ROUNDDOWN((DATEDIF(I85,J85,\"d\")/360),0)","v":0},{"$f":"IF((DATEDIF(I85,J85,\"d\")-(K85*360))>30,ROUNDDOWN(((DATEDIF(I85,J85,\"d\")-(K85*360))/30),0),0)","v":0},0,null,0]
[null,null,null,null,null,null,null,null,null,null,{"$f":"ROUNDDOWN((DATEDIF(I86,J86,\"d\")/360),0)","v":0},{"$f":"IF((DATEDIF(I86,J86,\"d\")-(K86*360))>30,ROUNDDOWN(((DATEDIF(I86,J86,\"d\")-(K86*360))/30),0),0)","v":0},0,null,0]
[null,null,null,null,null,null,null,null,null,null,0,0,0,null,0]
[null,null,null,null,null,null,null,null,null,null,0,0,0,null,0]
[null,null,null,null,null,null,null,null,null,"TOTAL AÑOS DE EXPERIENCIA",{"$f":"ROUNDDOWN((SUM(O84:O88)/360),0)","v":0},{"$f":"IF((SUM(O84:O88)-(K89*360))>30,ROUNDDOWN(((SUM(O84:O88)-(K89*360))/30),0),0)","v":0},{"$f":"IF((SUM(O84:O88)-((K89*360)+(L89*30)))<0,0,(SUM(O84:O88)-((K89*360)+(L89*30))))","v":0}]
[]
["(*) EL N° DE FOLIO DONDE SE UBICA EL SUSTENTO, DEBERÁ SER LLENADO OBLIGATORIAMENTE A LA PRESENTACIÓN DE LA FICHA CURRICULAR DOCUMENTADA, ES DECIR EN LA SUB ETAPA DE EVALUACIÓN CURRICULAR, ESTABLECIDA EN EL NUMERAL 7.2. DEL CAPÍTULO VII. DE LA ETAPA DE EVALUACIÓN DE LAS BASES DEL PROCESO DE CONVOCATORIA CAS."]
[]
["DECLARO BAJO JURAMENTO  QUE LA INFORMACIÓN QUE HE PROPORCIONADO EN ESTE FORMATO, ES VERAZ  Y ASUMO LAS RESPONSABILIDADES Y CONSECUENCIAS LEGALES QUE ELLO PRODUZCA"]
[]
["FECHA:"]
[]
[]
[]
[]
[]
[]
[]
[null,null,null,null,null,null,null,"Nombres y Apellidos :"]
[null,null,null,null,null,null,null,"Nº DNI :"]

{"sheet":"Hoja1","index":1,"n_rows":3,"n_cols":2,"rows_kept":3,"cut":false,"hidden":true,"merged":[]}
[null,"RPTA_C"]
[null,"SI"]
[null,"NO"]